bitfinex-derivatives/quotes_SOLF0:USTF0_20250124
["timestamp","ask_amount","ask_price","bid_price","bid_amount"]
[1737689031802,5.9877463,248.2,248.18,0.02731143]
[1737689032002,5.9877463,248.2,248.02,10.46160593]
[1737689032204,5.9877463,248.09,248.0,110.89646027]
[1737689033004,0.02773437,248.07,248.02,0.02842059]
[1737689034105,4.05943437,248.07,248.02,0.02842059]
[1737689035205,4.0322,248.04,248.02,0.02842059]
[1737689035898,4.0319,248.06,248.02,0.02842059]
[1737689036103,1.28913437,248.07,248.02,0.02842059]
[1737689038810,4.032,248.05,248.02,0.02842059]
[1737689040213,4.0322,248.04,248.02,0.02842059]
[1737689040519,13.39310752,248.04,248.02,0.02842059]
[1737689040717,9.36090752,248.04,247.89,9.36090752]
[1737689041314,9.36090752,248.04,247.95,4.0335]
[1737689041811,0.02982142,248.02,247.97,0.02825838]
[1737689042015,0.02982142,248.02,247.99,4.0329]
[1737689042215,0.02982142,248.02,247.97,0.02825838]
[1737689042617,0.02982142,248.02,248.0,4.0327]
[1737689043312,2.142e-05,248.02,248.0,4.0327]
[1737689045317,1.3215,248.15,248.1,4.0312]
[1737689045815,1.3215,248.15,248.08,4.0315]
[1737689046014,1.3215,248.15,248.04,9.36090752]
[1737689046517,0.02675039,248.12,248.07,0.03096692]
[1737689047314,0.02675039,248.12,248.1,4.0311]
[1737689047515,0.02675039,248.12,248.07,0.03096692]
[1737689047916,0.02675039,248.12,248.07,4.06256692]
[1737689048721,4.05765039,248.12,248.07,0.03096692]
[1737689049515,4.031,248.11,248.07,0.03096692]
[1737689050019,4.0312,248.1,248.07,0.03096692]
[1737689050225,1.3346,248.09,248.07,0.03096692]
[1737689055127,4.0315,248.08,248.07,0.03096692]
[1737689056628,13.39240752,248.08,248.07,0.03096692]
[1737689058130,30.81181504,248.08,247.87,10.48077651]
[1737689058329,9.36090752,247.96,247.86,110.89646027]
[1737689058529,4.0338,247.94,247.88,4.0347]
[1737689058728,3.8836,247.95,247.86,110.89646027]
[1737689058929,9.36090752,247.92,247.86,110.89646027]
[1737689059433,13.39570752,247.88,247.87,8.946e-05]
[1737689059827,9.36090752,247.88,247.79,208.60783841]
[1737689060022,4.0352,247.85,247.84,127.93073283]
[1737689060530,4.0356,247.83,247.71,127.93073283]
[1737689060730,9.36090752,247.81,247.71,127.93073283]
[1737689060930,9.36090752,247.81,247.75,0.02741725]
[1737689061125,0.02895586,247.79,247.75,0.02741725]
[1737689062432,9.36090752,247.77,247.75,0.02741725]
[1737689063326,9.36090752,247.77,247.71,127.93073283]
[1737689063625,9.36090752,247.77,247.6,0.2063]
[1737689064029,9.36090752,247.73,247.64,4.0386]
[1737689064535,0.03060485,247.71,247.66,0.02594164]
[1737689065228,9.36090752,247.69,247.66,0.02594164]
[1737689065530,4.0382,247.67,247.6,0.2063]
[1737689065735,9.36090752,247.65,247.6,0.2063]
[1737689065924,0.03060485,247.71,247.6,0.2063]
[1737689065925,9.36090752,247.69,247.6,0.2063]
[1737689066124,9.36090752,247.69,247.64,4.0386]
[1737689066724,9.39175561,247.69,247.64,4.0386]
[1737689067329,4.0381,247.68,247.6,4.2455]
[1737689067833,4.0397,247.58,247.5,4.0409]
[1737689068033,9.36090752,247.68,247.39,9.36090752]
[1737689068034,9.36090752,247.56,247.39,9.36090752]
[1737689068239,9.38988038,247.56,247.39,9.36090752]
[1737689068427,4.0402,247.55,247.46,4.0415]
[1737689068732,0.03087151,247.5,247.39,9.36090752]
[1737689068936,0.03087151,247.5,247.42,4.0422]
[1737689069132,0.03087151,247.5,247.39,9.36090752]
[1737689069441,9.36090752,247.48,247.31,9.36090752]
[1737689069633,9.36090752,247.48,247.39,4.0426]
[1737689069835,4.0416,247.47,247.31,9.36090752]
[1737689070136,0.02584587,247.46,247.31,9.36090752]
[1737689070543,0.02584587,247.46,247.24,196.62]
[1737689070544,9.36090752,247.52,247.35,9.36090752]
[1737689071041,0.02644054,247.46,247.35,9.36090752]
[1737689071736,0.02644054,247.46,247.31,15.05080553]
[1737689072130,1.3007,247.51,247.31,15.05080553]
[1737689072330,17.72740553,247.56,247.35,15.05080553]
[1737689072538,1.3324,247.56,247.39,15.05080553]
[1737689072841,15.05080553,247.64,247.39,15.05080553]
[1737689073034,4.039,247.62,247.4,0.3763]
[1737689073235,15.05080553,247.64,247.4,0.3763]
[1737689073432,4.0397,247.58,247.47,4.0414]
[1737689073632,4.0397,247.58,247.4,0.3763]
[1737689073835,0.02565101,247.54,247.5,0.02756826]
[1737689074244,15.05080553,247.6,247.39,15.05080553]
[1737689074442,0.02677297,247.54,247.5,0.02653027]
[1737689074744,4.06707297,247.54,247.5,0.02653027]
[1737689074940,0.02677297,247.54,247.5,0.02653027]
[1737689075237,0.02677297,247.54,247.52,4.0405]
[1737689079447,0.02677297,247.54,247.5,4.06743027]
[1737689080845,4.0408,247.52,247.5,0.02653027]
[1737689081552,4.0422,247.43,247.28,15.05080553]
[1737689081744,4.0422,247.43,247.29,0.72403273]
[1737689081946,4.0422,247.43,247.26,193.0]
[1737689082148,16.40460553,247.51,247.28,15.05080553]
[1737689082448,2.5953,247.53,247.36,15.05080553]
[1737689083244,0.02835455,247.47,247.41,4.0423]
[1737689083449,0.02835455,247.47,247.37,1.2754]
[1737689083946,0.02835455,247.47,247.45,4.0417]
[1737689084351,0.02835455,247.47,247.37,1.2754]
[1737689085448,0.02835455,247.47,247.32,15.05080553]
[1737689085645,2.5953,247.53,247.32,15.05080553]
[1737689085845,15.05080553,247.51,247.3,1.3541]
[1737689086251,0.02716595,247.45,247.4,4.0424]
[1737689086453,0.02716595,247.45,247.3,1.3541]
[1737689086852,4.0415,247.47,247.39,4.0426]
[1737689087053,0.02625436,247.4,247.3,1.3541]
[1737689087255,15.05080553,247.51,247.3,1.3541]
[1737689087456,0.03018211,247.37,247.32,4.0439]
[1737689087754,15.05080553,247.47,247.24,15.05080553]
[1737689087955,0.02640437,247.37,247.32,4.0439]
[1737689088155,0.02640437,247.37,247.21,0.3737]
[1737689088455,0.03056595,247.31,247.24,4.0452]
[1737689088657,1.3608,247.46,247.24,15.05080553]
[1737689089249,15.05080553,247.43,247.24,15.05080553]
[1737689089749,4.0425,247.41,247.34,4.0435]
[1737689089955,0.0298787,247.36,247.34,4.0435]
[1737689090351,0.0298787,247.36,247.31,0.02956087]
[1737689092554,0.0298787,247.36,247.34,4.0435]
[1737689092953,0.0298787,247.36,247.32,4.0438]
[1737689093256,0.0298787,247.36,247.31,0.02956087]
[1737689094455,0.0298787,247.36,247.2,208.05080553]
[1737689094655,15.05080553,247.43,247.2,208.05080553]
[1737689094860,4.0428,247.39,247.2,208.05080553]
[1737689095561,0.03013832,247.32,247.2,208.05080553]
[1737689096063,0.03013832,247.32,247.2,193.0]
[1737689096364,0.03013832,247.32,247.29,4.0443]
[1737689097062,0.03013832,247.32,247.16,15.05080553]
[1737689097561,0.02691909,247.26,247.16,15.05080553]
[1737689098257,0.02691909,247.26,247.24,4.0451]
[1737689099459,0.02691909,247.26,247.22,4.0455]
[1737689099864,0.02691909,247.26,247.15,1.7101]
[1737689100559,1.909e-05,247.26,247.24,4.0451]
[1737689102163,1.909e-05,247.26,247.23,4.0725252]
[1737689102362,1.909e-05,247.26,247.23,0.0272252]
[1737689103258,1.909e-05,247.26,247.23,4.0725252]
[1737689103466,1.909e-05,247.26,247.23,0.0272252]
[1737689103763,1.909e-05,247.26,247.24,4.0452]
[1737689104264,1.909e-05,247.26,247.23,0.0272252]
[1737689104957,1.909e-05,247.26,247.24,4.0451]
[1737689105758,1.909e-05,247.26,247.23,0.0272252]
[1737689107363,4.0451,247.25,247.23,0.0272252]
[1737689107666,4.0451,247.25,247.09,1.7224]
[1737689107865,4.0451,247.25,247.17,4.0463]
[1737689108070,4.0452,247.24,247.17,4.0463]
[1737689108265,1.3678,247.26,247.17,4.0463]
[1737689108465,1.3678,247.26,247.09,1.7224]
[1737689108866,0.02757281,247.2,247.09,1.7224]
[1737689109166,0.02757281,247.2,247.18,4.0461]
[1737689109365,0.02757281,247.2,247.09,1.7224]
[1737689109767,0.02757281,247.2,247.19,4.046]
[1737689111364,5.4869466,247.31,247.19,4.046]
[1737689111562,5.4869466,247.31,247.12,15.05080553]
[1737689111764,5.4869466,247.31,247.16,15.05080553]
[1737689111969,5.4869466,247.31,247.24,4.0451]
[1737689112163,5.4869466,247.31,247.12,15.05080553]
[1737689112467,5.4869466,247.31,247.13,0.72454175]
[1737689112666,5.4869466,247.31,247.28,4.0445]
[1737689113372,5.4869466,247.31,247.27,0.03041312]
[1737689113875,0.02963317,247.32,247.3,4.0442]
[1737689114575,0.02963317,247.32,247.28,4.0444]
[1737689114772,0.02963317,247.32,247.27,0.03041312]
[1737689115573,0.02963317,247.32,247.12,15.05080553]
[1737689115769,4.0446,247.28,247.13,0.72454518]
[1737689116578,1.3628,247.34,247.13,0.72454518]
[1737689116782,0.02969905,247.23,247.12,15.05080553]
[1737689117080,0.02969905,247.23,247.2,4.0458]
[1737689117280,0.02969905,247.23,247.12,15.05080553]
[1737689117477,0.02969905,247.23,247.13,0.72460122]
[1737689117678,0.02969905,247.23,247.12,15.05080553]
[1737689118081,0.02969905,247.23,247.21,4.0456]
[1737689118482,0.02969905,247.23,247.12,15.05080553]
[1737689118783,0.02969905,247.23,247.19,4.0459]
[1737689118984,0.02969905,247.23,247.1,1.3661]
[1737689119184,0.02969905,247.23,247.11,0.72461546]
[1737689119783,0.02969905,247.23,247.1,1.3661]
[1737689120184,0.02969905,247.23,247.11,0.72464773]
[1737689120786,0.02969905,247.23,247.08,15.05080553]
[1737689120983,1.3095,247.3,247.09,0.72469368]
[1737689121184,0.02707267,247.18,247.17,4.0463]
[1737689121483,1.3095,247.3,247.12,15.05080553]
[1737689121684,5.3573,247.37,247.3,4.0442]
[1737689121987,1.3141,247.37,247.16,15.05080553]
[1737689122187,1.3141,247.37,247.17,0.7244993]
[1737689122380,4.0436,247.34,247.27,4.0446]
[1737689122581,0.02799147,247.29,247.25,0.02934246]
[1737689123382,4.07239147,247.29,247.25,0.02934246]
[1737689123890,4.07239147,247.29,247.2,4.0457]
[1737689123891,4.0447,247.27,247.2,4.0457]
[1737689124077,4.0447,247.27,247.13,0.3755]
[1737689124278,1.2786,247.3,247.1,0.0629]
[1737689124480,4.045,247.25,247.11,0.72460204]
[1737689124789,1.2786,247.3,247.11,0.72460204]
[1737689125086,0.02690612,247.23,247.11,0.72460204]
[1737689125487,0.02690612,247.23,247.19,4.046]
[1737689126387,0.02690612,247.23,247.21,4.0456]
[1737689126779,0.02690612,247.23,247.08,15.05080553]
[1737689126985,15.05080553,247.27,247.09,0.72470329]
[1737689127286,0.03023487,247.18,247.09,0.72470329]
[1737689127487,0.03023487,247.18,247.17,4.0463]
[1737689128785,0.03023487,247.18,247.08,15.05080553]
[1737689128786,1.3141,247.37,247.16,15.05080553]
[1737689128987,1.3141,247.37,247.17,1.19354326]
[1737689129183,15.05080553,247.35,247.18,0.72446114]
[1737689129387,15.05080553,247.31,247.09,0.4698]
[1737689129586,4.0444,247.29,247.2,4.0457]
[1737689129791,0.02789765,247.22,247.18,0.03011938]
[1737689129986,15.05080553,247.31,247.18,0.03011938]
[1737689130181,0.02782976,247.22,247.18,0.03011938]
[1737689130384,15.05080553,247.31,247.18,0.03011938]
[1737689130686,1.3141,247.37,247.18,0.03011938]
[1737689130989,1.3141,247.37,247.17,0.72459874]
[1737689131187,15.05080553,247.35,247.17,0.72459874]
[1737689131484,15.05080553,247.35,247.16,3.62]
[1737689131685,9.42271702,247.29,247.12,9.42271702]
[1737689131885,9.42271702,247.29,247.13,0.72456178]
[1737689132183,0.02905491,247.23,247.18,0.02654066]
[1737689132885,0.02905491,247.23,247.21,4.0456]
[1737689136084,0.02905491,247.23,247.22,4.0455]
[1737689136689,0.02905491,247.23,247.19,4.0459]
[1737689136892,0.02905491,247.23,247.18,0.02654066]
[1737689137696,0.02905491,247.23,247.22,4.0455]
[1737689138093,0.02905491,247.23,247.2,4.0457]
[1737689138296,0.02905491,247.23,247.18,0.02654066]
[1737689138694,0.02905491,247.23,247.19,4.0459]
[1737689138894,0.02905491,247.23,247.18,0.02654066]
[1737689140298,0.02905491,247.23,247.22,4.0455]
[1737689141098,1.3618,247.34,247.32,4.0438]
[1737689141298,5.4869466,247.4,247.22,15.07200454]
[1737689141497,5.4869466,247.4,247.26,15.07200454]
[1737689142100,5.4869466,247.4,247.23,0.0936]
[1737689142399,0.03103633,247.35,247.33,4.0437]
[1737689142604,3.633e-05,247.35,247.33,4.0437]
[1737689143200,3.633e-05,247.35,247.31,4.07338707]
[1737689143499,3.633e-05,247.35,247.31,0.02948707]
[1737689143897,3.633e-05,247.35,247.32,4.0438]
[1737689144200,3.633e-05,247.35,247.31,0.02948707]
[1737689144402,3.633e-05,247.35,247.33,4.00178755]
[1737689148602,1.3461,247.47,247.46,4.0416]
[1737689148803,1.2849,247.49,247.34,15.07200454]
[1737689149296,1.2849,247.49,247.38,15.07200454]
[1737689149699,1.2849,247.49,247.41,0.02694982]
[1737689149898,0.02663488,247.46,247.41,0.02694982]
[1737689150105,0.02663488,247.46,247.44,4.0418]
[1737689150305,0.02663488,247.46,247.41,0.02694982]
[1737689150505,0.02663488,247.46,247.44,4.0418]
[1737689152609,0.02663488,247.46,247.41,0.02694982]
[1737689153005,0.02663488,247.46,247.42,4.0422]
[1737689153708,0.02663488,247.46,247.41,0.02694982]
[1737689154303,0.02663488,247.46,247.44,4.0419]
[1737689154710,0.02663488,247.46,247.41,0.02694982]
[1737689156213,0.02663488,247.46,247.42,4.0422]
[1737689156610,0.02663488,247.46,247.41,0.02694982]
[1737689157211,0.02663488,247.46,247.45,4.0417]
[1737689158914,3.488e-05,247.46,247.45,4.0417]
[1737689159311,3.488e-05,247.46,247.41,0.02694982]
[1737689159312,3.488e-05,247.46,247.44,4.0419]
[1737689159616,3.488e-05,247.46,247.41,0.02694982]
[1737689160821,3.488e-05,247.46,247.45,4.0417]
[1737689161116,3.488e-05,247.46,247.41,0.02694982]
[1737689161921,3.488e-05,247.46,247.44,4.0419]
[1737689162117,3.488e-05,247.46,247.44,9.40273361]
[1737689162313,1.334,247.57,247.44,9.40273361]
[1737689162517,1.334,247.57,247.48,9.40273361]
[1737689162717,9.40273361,247.64,247.48,9.40273361]
[1737689163119,4.039,247.62,247.48,9.40273361]
[1737689163423,1.3277,247.66,247.53,9.42966497]
[1737689163620,1.28,247.71,247.57,9.40273361]
[1737689163819,1.28,247.71,247.61,9.40273361]
[1737689164011,23.21008641,247.75,247.65,9.40273361]
[1737689164416,21.94778641,247.75,247.65,9.40273361]
[1737689164720,21.94778641,247.75,247.69,9.40273361]
[1737689164916,21.94778641,247.75,247.73,4.0371]
[1737689165118,21.94778641,247.75,247.73,9.40273361]
[1737689165119,9.45398641,247.75,247.73,9.40273361]
[1737689165315,32.04698975,247.77,247.76,4.0367]
[1737689165722,65.84335927,247.79,247.75,14.99800854]
[1737689165922,5.47979494,247.91,247.78,14.99800854]
[1737689166116,4.87e-05,247.79,247.78,14.99800854]
[1737689166322,5.47979494,247.91,247.85,4.0352]
[1737689166519,5.47979494,247.91,247.85,14.99800854]
[1737689167119,9.494e-05,247.91,247.89,4.0345]
[1737689167324,3.8781,248.02,247.89,14.99800854]
[1737689167627,0.02935301,247.92,247.89,14.99800854]
[1737689167824,3.8781,248.02,247.89,14.99800854]
[1737689168025,0.02640142,247.93,247.89,14.99800854]
[1737689168227,2.57,248.02,247.94,4.0336]
[1737689168528,2.57,248.02,247.8,14.99800854]
[1737689168529,2.5958,248.15,248.01,14.99800854]
[1737689169125,2.5958,248.15,248.03,4.0323]
[1737689169332,2.5958,248.15,248.01,14.99800854]
[1737689169530,0.0259985,248.11,248.07,0.02566613]
[1737689170833,0.0259985,248.11,248.1,14.99800854]
[1737689171525,0.0259985,248.11,248.07,0.02566613]
[1737689172930,0.0259985,248.11,248.07,4.05726613]
[1737689173233,4.0293,248.22,248.09,14.99800854]
[1737689173728,4.0294,248.21,248.09,14.99800854]
[1737689173925,1.295,248.23,248.09,14.99800854]
[1737689174427,14.99800854,248.36,248.17,14.99800854]
[1737689174626,2.6546,248.51,248.3,14.99800854]
[1737689175128,1.2539,248.5,248.3,14.99800854]
[1737689175432,0.02869987,248.43,248.38,0.02730314]
[1737689175930,0.02869987,248.43,248.26,14.99800854]
[1737689175931,14.99800854,248.48,248.26,14.99800854]
[1737689176133,0.03019619,248.43,248.38,5.291e-05]
[1737689176533,4.0264,248.39,248.38,5.291e-05]
[1737689178536,0.03019619,248.43,248.38,5.291e-05]
[1737689179335,4.0264,248.39,248.38,5.291e-05]
[1737689180035,14.99800854,248.39,248.16,14.99800854]
[1737689181035,10.7818751,248.39,248.16,14.99800854]
[1737689181236,0.02931193,248.3,248.25,0.02786333]
[1737689182033,0.02931193,248.3,248.28,4.0281]
[1737689182338,1.193e-05,248.3,248.28,19.02610854]
[1737689183237,1.193e-05,248.3,248.28,4.0281]
[1737689183642,1.193e-05,248.3,248.26,3.66]
[1737689183843,1.193e-05,248.3,248.25,0.02786333]
[1737689184640,4.0273,248.34,248.25,0.02786333]
[1737689184841,14.99800854,248.39,248.25,0.02786333]
[1737689185033,1.2963,248.33,248.17,3.66]
[1737689185235,2.586,248.32,248.2,14.99800854]
[1737689185437,1.2971,248.32,248.2,14.99800854]
[1737689185834,0.02755825,248.28,248.24,0.02884873]
[1737689186443,5.825e-05,248.28,248.26,4.0285]
[1737689186844,5.3225,248.41,248.31,4.0277]
[1737689187839,4.027,248.36,248.27,4.0283]
[1737689188044,1.2963,248.41,248.2,14.99800854]
[1737689188245,0.00805534,248.38,248.34,0.02789313]
[1737689188545,1.2963,248.41,248.2,14.99800854]
[1737689188737,1.2963,248.41,248.25,14.99800854]
[1737689189042,4.0263,248.4,248.25,14.99800854]
[1737689189243,1.2963,248.41,248.25,14.99800854]
[1737689189543,14.99800854,248.38,248.15,14.99800854]
[1737689189843,12.09,248.39,248.01,3.76]
[1737689189844,14.99800854,248.28,248.01,3.76]
[1737689190143,1.3203,248.27,248.06,4.0318]
[1737689190338,1.3203,248.27,248.01,3.76]
[1737689190544,4.0302,248.16,248.04,19.03000854]
[1737689190744,1.3718,248.26,248.04,19.03000854]
[1737689191138,0.02706159,248.12,248.08,0.02956609]
[1737689191342,14.99800854,248.23,248.08,0.02956609]
[1737689191743,0.02581896,248.12,247.96,24.33028578]
[1737689192243,24.33028578,248.19,247.96,24.33028578]
[1737689192446,0.02841563,248.06,247.96,24.33028578]
[1737689192845,0.02841563,248.06,247.92,3.76]
[1737689193446,0.02841563,248.06,247.97,0.02992296]
[1737689194143,4.0322,248.04,247.97,0.02992296]
[1737689194744,4.06031563,248.06,247.97,0.02992296]
[1737689194942,4.03289025,248.06,247.97,0.02992296]
[1737689195347,0.00099025,248.06,247.97,0.02992296]
[1737689196048,24.33028578,248.05,247.97,0.02992296]
[1737689196245,24.33028578,248.05,247.81,110.35340054]
[1737689196246,24.33028578,248.05,247.81,114.11340054]
[1737689196450,4.0327,248.01,247.9,4.0343]
[1737689197046,2.6755,248.08,247.89,24.33028578]
[1737689197550,0.03102218,248.01,247.97,4.0332]
[1737689197747,24.33028578,248.23,247.98,28.11028578]
[1737689198050,26.96838578,248.23,248.03,24.33028578]
[1737689198254,2.6381,248.23,248.03,24.33028578]
[1737689198550,4.0296,248.2,248.1,4.0311]
[1737689198753,4.0296,248.2,248.03,24.33028578]
[1737689198954,0.02565486,248.17,248.13,0.02809099]
[1737689200155,4.05575486,248.17,248.13,0.02809099]
[1737689200944,0.02565486,248.17,248.13,0.02809099]
[1737689202559,4.0302,248.16,248.13,0.02809099]
[1737689202851,0.00095264,248.17,248.13,0.02809099]
[1737689203961,4.0309,248.12,248.1,110.35340054]
[1737689204454,4.0309,248.12,248.1,108.27790054]
[1737689205551,4.0309,248.12,248.1,106.20240054]
[1737689205759,4.0309,248.12,248.1,85.59529072]
[1737689206250,0.00095264,248.17,248.09,0.03082221]
[1737689207358,4.0304,248.15,248.09,0.03082221]
[1737689207652,0.00095264,248.17,248.09,0.03082221]
[1737689207861,0.00095264,248.17,248.13,4.0306]
[1737689208255,0.00095264,248.17,248.09,0.03082221]
[1737689208558,0.00095264,248.17,248.15,4.0303]
[1737689208952,0.00095264,248.17,248.11,4.0309]
[1737689209154,0.00095264,248.17,248.09,0.03082221]
[1737689209558,4.03095264,248.17,248.11,4.031]
[1737689209857,0.00095264,248.17,248.09,0.03082221]
[1737689210157,0.00095264,248.17,248.16,4.0302]
[1737689211257,16.0694,248.39,248.14,0.03092752]
[1737689211459,24.33028578,248.34,248.12,24.33028578]
[1737689211758,4.0288,248.25,248.16,4.03]
[1737689212362,0.02749866,248.23,248.18,0.02968518]
[1737689213257,0.02749866,248.23,248.21,4.0292]
[1737689213453,1.2725,248.38,248.18,0.02968518]
[1737689213753,4.0272,248.35,248.16,2.5959]
[1737689213958,1.2725,248.38,248.2,14.95309336]
[1737689214151,1.2725,248.38,248.21,1.3173]
[1737689214356,1.2725,248.38,248.25,14.95309336]
[1737689214758,0.02551366,248.32,248.27,0.02713889]
[1737689216058,0.02551366,248.32,248.3,4.0278]
[1737689216255,0.02551366,248.32,248.27,0.02713889]
[1737689216657,0.02551366,248.32,248.29,4.028]
[1737689216858,0.02551366,248.32,248.27,0.02713889]
[1737689217264,4.0233,248.59,248.48,4.0249]
[1737689217460,3.8762,248.75,248.42,14.95309336]
[1737689217653,1.325,248.63,248.42,14.95309336]
[1737689217858,4.0228,248.62,248.48,4.0249]
[1737689218153,1.325,248.63,248.48,4.0249]
[1737689218357,1.325,248.63,248.42,14.95309336]
[1737689218358,1.325,248.63,248.54,4.024]
[1737689218560,2.5512,248.75,248.55,14.95309336]
[1737689218758,3.9211,248.75,248.55,14.95309336]
[1737689218962,4.0218,248.68,248.55,14.95309336]
[1737689219157,3.9211,248.75,248.5,14.95309336]
[1737689219663,4.0214,248.71,248.55,14.95309336]
[1737689219857,4.0214,248.71,248.6,0.02993006]
[1737689220263,4.021,248.73,248.6,0.02993006]
[1737689220458,4.021,248.73,248.57,4.0235]
[1737689220662,3.9211,248.75,248.64,0.02752232]
[1737689220868,4.0219,248.68,248.64,0.02752232]
[1737689221364,43.87373646,248.92,248.67,14.95309336]
[1737689221664,28.16843018,248.96,248.72,24.18373018]
[1737689221859,28.16843018,248.96,248.77,0.02775236]
[1737689222059,24.18373018,248.91,248.68,2.5798]
[1737689222263,24.18373018,248.91,248.84,0.02913094]
[1737689222562,4.0187,248.87,248.69,24.18373018]
[1737689222763,4.0187,248.87,248.85,0.02746208]
[1737689222964,4.0187,248.87,248.69,24.18373018]
[1737689223164,4.019,248.86,248.69,24.18373018]
[1737689223361,0.02846925,248.8,248.69,24.18373018]
[1737689223760,28.16843018,248.96,248.74,24.18373018]
[1737689223961,3.9847,248.96,248.75,1.2765]
[1737689224163,24.18373018,249.06,248.86,24.18373018]
[1737689224364,4.0165,249.01,248.86,28.20243018]
[1737689224564,24.18373018,249.16,248.91,24.18373018]
[1737689224766,4.94732007,249.25,249.01,24.18373018]
[1737689225066,0.73799499,249.23,249.01,0.02660002]
[1737689225364,4.0144,249.14,249.01,4.0163]
[1737689225565,4.94732007,249.25,249.1,0.0309309]
[1737689225768,0.73797439,249.23,249.0,24.18373018]
[1737689226161,0.73797439,249.23,249.15,0.02585645]
[1737689226357,0.73797439,249.23,249.0,24.18373018]
[1737689226563,4.94732007,249.25,249.0,24.18373018]
[1737689226769,4.0133,249.21,249.17,6.696e-05]
[1737689226956,4.94732007,249.25,249.17,6.696e-05]
[1737689226957,24.18373018,249.19,249.17,6.696e-05]
[1737689227161,24.18373018,249.19,248.94,24.18373018]
[1737689227162,3.9627,249.18,248.94,24.18373018]
[1737689227764,24.18373018,249.14,248.92,3.8576]
[1737689228167,4.94542835,249.31,249.04,0.0289864]
[1737689228168,0.02665659,249.08,249.04,0.0289864]
[1737689228368,4.04205659,249.08,249.04,0.0289864]
[1737689228561,24.18373018,249.15,248.93,2.5806]
[1737689228760,0.03088315,249.08,248.92,1.2765]
[1737689228960,0.03088315,249.08,248.93,24.18373018]
[1737689229162,24.18373018,249.2,248.98,24.18373018]
[1737689229364,4.0144,249.14,249.01,4.0163]
[1737689229569,1.3582,249.22,249.01,4.0163]
[1737689229864,0.7379419,249.21,248.98,24.18373018]
[1737689230064,1.3582,249.22,249.09,0.02799049]
[1737689230065,0.02693528,249.14,249.09,0.02799049]
[1737689230364,24.18373018,249.3,249.09,0.02799049]
[1737689230561,1.2592,249.3,249.09,0.02799049]
[1737689230867,1.2592,249.3,249.08,24.18373018]
[1737689231066,24.18373018,249.26,249.03,24.18373018]
[1737689231266,24.18373018,249.37,249.14,24.18373018]
[1737689231463,24.18373018,249.37,249.15,1.3596]
[1737689231865,24.18373018,249.42,249.15,1.3596]
[1737689232165,0.7373712,249.41,249.2,24.18373018]
[1737689232464,3.9836,249.45,249.2,24.18373018]
[1737689232669,0.73725001,249.44,249.2,24.18373018]
[1737689232869,4.0111,249.35,249.3,0.02905195]
[1737689233264,4.0111,249.35,249.2,24.18373018]
[1737689233466,4.0097,249.43,249.3,28.19543018]
[1737689233778,24.18373018,249.52,249.3,24.21075954]
[1737689233971,4.0114,249.33,249.3,0.02702936]
[1737689234170,24.18373018,249.47,249.25,24.18373018]
[1737689234571,24.18373018,249.57,249.34,24.18373018]
[1737689234773,0.73696849,249.56,249.34,24.18373018]
[1737689235272,4.0094,249.45,249.43,0.02838245]
[1737689237174,4.0091,249.47,249.43,0.02838245]
[1737689237375,2.606,249.63,249.42,24.18373018]
[1737689237769,2.606,249.63,249.44,4.0094]
[1737689237966,39.0,249.91,249.47,24.18373018]
[1737689238173,4.0065,249.63,249.53,4.008]
[1737689238473,1.3178,249.74,249.48,1.2608]
[1737689238675,4.0073,249.58,249.57,0.02838744]
[1737689239075,24.18373018,249.66,249.48,1.2608]
[1737689239475,0.7365594,249.65,249.38,1.3191]
[1737689239669,24.18373018,249.66,249.42,24.18373018]
[1737689239977,0.02780824,249.59,249.42,24.18373018]
[1737689240172,0.73648767,249.7,249.47,24.18373018]
[1737689240474,24.18373018,249.71,249.55,4.0077]
[1737689240668,24.18373018,249.71,249.47,24.18373018]
[1737689240873,0.02739693,249.61,249.56,0.02902053]
[1737689241272,24.18373018,249.9,249.6,24.18373018]
[1737689241569,1.3479,249.95,249.7,24.18373018]
[1737689241770,1.3479,249.95,249.59,24.18373018]
[1737689241771,1.3479,249.95,249.75,24.18373018]
[1737689241970,4.0023,249.89,249.76,4.0042]
[1737689242366,1.3479,249.95,249.75,24.18373018]
[1737689242571,1.3479,249.95,249.8,0.02564291]
[1737689242770,24.18373018,249.89,249.8,0.02564291]
[1737689242966,4.0052,249.71,249.61,1.3315]
[1737689243168,24.18373018,249.79,249.61,1.3315]
[1737689243373,24.18373018,249.84,249.61,24.18373018]
[1737689243976,4.0054,249.7,249.61,24.18373018]
[1737689244173,24.18373018,249.84,249.56,2.6147]
[1737689244371,0.02871833,249.75,249.7,0.02818221]
[1737689245173,4.0051,249.72,249.7,0.02818221]
[1737689246478,0.02871833,249.75,249.7,0.02818221]